[Event "36th Indian-ch U13 Girls 2023"]
[Site "Secunderabad"]
[Date "2023.12.10"]
[Round "11.8"]
[White "Shriyana S Mallya"]
[Black "Shivamshika G"]
[Result "0-1"]
[ECO "C18"]
[WhiteElo "1561"]
[BlackElo "1424"]
[Annotator "NA RC"]
[PlyCount "222"]
[EventDate "2023.12.04"]
[EventType "swiss"]
[EventCountry "IND"]
[SourceTitle "playchess.com"]
[Source "ChessBase"]
[SourceQuality "1"]
[TimeControl "5400+30"]

1. e4 {[%emt 0:00:10]} e6 {[%emt 0:00:18]} 2. d4 {[%emt 0:00:11]} d5 {[%emt 0:00:06]} 3. Nc3 {[%emt 0:00:17]} Bb4 {[%emt 0:00:39]} 4. e5 {[%emt 0:00:19]} c5 {[%emt 0:01:28]} 5. a3 {[%emt 0:00:22]} Bxc3+ {[%emt 0:00:12]} 6. bxc3 {[%emt 0:00:29]} Ne7 {[%emt 0:00:17]} 7. h4 {[%emt 0:00:58]} Qc7 {[%emt 0:02:33]} 8. h5 {[%emt 0:00:48]} h6 {[%emt 0:00:49]} 9. Rb1 {[%emt 0:00:52]} Nbc6 {[%emt 0:02:26]} 10. Qg4 {[%emt 0:02:12]} Nf5 {[%emt 0:05:47]} 11. Bd3 {[%emt 0:01:28]} Nce7 {[%emt 0:09:04]} 12. Bd2 {[%emt 0:07:34]} Bd7 {[%emt 0:03:54]} 13. Qf4 {[%emt 0:05:01]} g5 {[%emt 0:05:34]} 14. hxg6 {[%emt 0:07:50]} Nxg6 {[%emt 0:02:16]} 15. Qg4 {[%emt 0:04:26]} O-O-O {[%emt 0:07:04]} 16. Bxf5 {[%emt 0:17:19]} exf5 {[%emt 0:00:05]} 17. Qf3 {[%emt 0:00:35]} Qc6 {[%emt 0:03:20]} 18. Ne2 {[%emt 0:02:14]} Rde8 {[%emt 0:09:06]} 19. Kd1 {[%emt 0:11:36]} Kb8 {[%emt 0:11:47]} 20. Nc1 {[%emt 0:05:33]} c4 {[%emt 0:04:45]} 21. Bf4 {[%emt 0:04:39]} Nxf4 {[%emt 0:05:48]} 22. Qxf4 {[%emt 0:00:30]} Ka8 {[%emt 0:00:26]} 23. Ne2 {[%emt 0:01:08]} f6 {[%emt 0:01:44]} 24. exf6 {[%emt 0:07:49]} Qxf6 {[%emt 0:00:27]} 25. Ng3 {[%emt 0:00:21]} h5 {[%emt 0:02:39]} 26. Rh4 {[%emt 0:11:01]} Qe7 {[%emt 0:04:55]} 27. Kd2 {[%emt 0:00:35]} Ba4 {[%emt 0:06:33]} 28. Rhh1 {[%emt 0:03:10]} h4 {[%emt 0:01:37]} 29. Rhe1 {[%emt 0:00:07]} Qf6 {[%emt 0:00:46]} 30. Nf1 {[%emt 0:03:38]} Qg6 {[%emt 0:04:37]} 31. Ne3 {[%emt 0:00:42]} Re4 {[%emt 0:01:03]} 32. Qc7 {[%emt 0:00:08]} Bc6 {[%emt 0:00:12]} 33. f3 {[%emt 0:01:13]} Ree8 {[%emt 0:00:52]} 34. Qf4 {[%emt 0:00:38]} Ref8 {[%emt 0:01:05]} 35. a4 {[%emt 0:01:07]} Qh6 {[%emt 0:01:48]} 36. Qxh6 {[%emt 0:00:38]} Rxh6 {[%emt 0:00:06]} 37. Rh1 {[%emt 0:00:14]} f4 {[%emt 0:01:07]} 38. Ng4 {[%emt 0:00:06]} Rhh8 {[%emt 0:00:04]} 39. a5 {[%emt 0:00:20]} Rfg8 {[%emt 0:00:27]} 40. Rh2 {[%emt 0:00:48]} Rg7 {[%emt 0:01:03]} 41. Rbh1 {[%emt 0:00:32]} Rgh7 {[%emt 0:00:21]} 42. Ne5 {[%emt 0:00:42]} Be8 {[%emt 0:00:08]} 43. Ke2 {[%emt 0:00:46]} Kb8 {[%emt 0:00:45]} 44. Kf2 {[%emt 0:00:13]} Kc7 {[%emt 0:00:19]} 45. Ng4 {[%emt 0:00:53]} Bf7 {[%emt 0:00:35]} 46. Re1 {[%emt 0:00:33]} Kd6 {[%emt 0:00:40]} 47. Ne5 {[%emt 0:00:32]} Be8 {[%emt 0:00:21]} 48. Reh1 {[%emt 0:00:26]} Rh5 {[%emt 0:02:32]} 49. Rb1 {[%emt 0:00:24]} R5h7 {[%emt 0:00:00]} 50. Ng4 {[%emt 0:00:19]} Bg6 {[%emt 0:00:00]} 51. Nf6 {[%emt 0:00:32]} Rf7 {[%emt 0:00:09]} 52. Ng4 {[%emt 0:00:24]} Bxc2 {[%emt 0:00:08]} 53. Rb2 {[%emt 0:00:29]} Bf5 {[%emt 0:00:12]} 54. Ne5 {[%emt 0:00:02]} Re7 {[%emt 0:00:08]} 55. Ra2 {[%emt 0:00:18]} h3 {[%emt 0:00:21]} 56. gxh3 {[%emt 0:01:32]} Rxh3 {[%emt 0:00:09]} 57. Rg2 {[%emt 0:00:25]} Reh7 {[%emt 0:00:28]} 58. Rb2 {[%emt 0:00:14]} Rh1 {[%emt 0:00:21]} 59. Ng6 {[%emt 0:00:32]} Bh3 {[%emt 0:00:30]} 60. Nxf4 {[%emt 0:00:51]} Bxg2 {[%emt 0:00:06]} 61. Nxg2 {[%emt 0:00:02]} Rc1 {[%emt 0:00:13]} 62. Rb5 {[%emt 0:00:18]} a6 {[%emt 0:01:22]} 63. Rb6+ {[%emt 0:00:04]} Kc7 {[%emt 0:00:20]} 64. Nf4 {[%emt 0:00:18]} Rd7 {[%emt 0:00:16]} 65. Ne6+ {[%emt 0:00:28]} Kc8 {[%emt 0:00:10]} 66. Nc5 {[%emt 0:00:06]} Rf7 {[%emt 0:00:09]} 67. Na4 {[%emt 0:00:42]} Ra1 {[%emt 0:01:12]} 68. Rb4 {[%emt 0:00:09]} Rf5 {[%emt 0:00:38]} 69. Kg3 {[%emt 0:01:04]} Rf1 {[%emt 0:00:21]} 70. Nb6+ {[%emt 0:00:19]} Kc7 {[%emt 0:00:05]} 71. Kg4 {[%emt 0:00:25]} R5xf3 {[%emt 0:01:03]} 72. Nxd5+ {[%emt 0:02:50]} Kd6 {[%emt 0:00:07]} 73. Nb6 {[%emt 0:00:00]} Rxc3 {[%emt 0:00:21]} 74. Nxc4+ {[%emt 0:00:00]} Kd5 {[%emt 0:00:34]} 75. Nb6+ {[%emt 0:00:00]} Kc6 {[%emt 0:00:15]} 76. d5+ {[%emt 0:00:15]} Kc5 {[%emt 0:04:22]} 77. Rb2 {[%emt 0:01:33]} Kd6 {[%emt 0:00:00]} 78. Re2 {[%emt 0:00:15]} Rc7 {[%emt 0:00:00]} 79. Re6+ {[%emt 0:00:52]} Kc5 {[%emt 0:00:00]} 80. Kg3 {[%emt 0:00:32]} Rg7+ {[%emt 0:00:00]} 81. Kh2 {[%emt 0:00:03]} Rf5 {[%emt 0:00:00]} 82. Rh6 {[%emt 0:00:09]} Rgg5 {[%emt 0:00:00]} 83. Re6 {[%emt 0:00:34]} Rg7 {[%emt 0:00:00]} 84. Rh6 {[%emt 0:00:06]} Rf2+ {[%emt 0:00:00]} 85. Kh1 {[%emt 0:00:12]} Ra2 {[%emt 0:00:25]} 86. d6 {[%emt 0:00:32]} Rd2 {[%emt 0:00:50]} 87. d7 {[%emt 0:00:38]} Re7 {[%emt 0:00:37]} 88. Rh5+ {[%emt 0:00:24]} Kc6 {[%emt 0:00:16]} 89. Rh6+ {[%emt 0:01:05]} Kc7 {[%emt 0:00:05]} 90. Na8+ {[%emt 0:01:13]} Kxd7 {[%emt 0:00:13]} 91. Nb6+ {[%emt 0:00:03]} Ke8 {[%emt 0:00:20]} 92. Rh8+ {[%emt 0:00:45]} Kf7 {[%emt 0:00:02]} 93. Rh7+ {[%emt 0:00:07]} Kf8 {[%emt 0:00:07]} 94. Rxe7 {[%emt 0:00:21]} Kxe7 {[%emt 0:00:08]} 95. Kg1 {[%emt 0:00:18]} Ra2 {[%emt 0:00:17]} 96. Nc4 {[%emt 0:00:10]} Ra4 {[%emt 0:00:14]} 97. Nb6 {[%emt 0:00:15]} Rxa5 {[%emt 0:00:09]} 98. Kf2 {[%emt 0:00:04]} Rb5 {[%emt 0:00:14]} 99. Nc4 {[%emt 0:00:07]} a5 {[%emt 0:00:07]} 100. Ke2 {[%emt 0:00:02]} a4 {[%emt 0:00:05]} 101. Kd2 {[%emt 0:00:08]} Rb4 {[%emt 0:00:22]} 102. Ne3 {[%emt 0:00:08]} Kd6 {[%emt 0:00:18]} 103. Kc2 {[%emt 0:00:06]} a3 {[%emt 0:00:09]} 104. Kc3 {[%emt 0:00:13]} a2 {[%emt 0:00:31]} 105. Kxb4 {[%emt 0:05:20]} a1=Q {[%emt 0:09:01]} 106. Nc4+ {[%emt 0:00:00]} Kd5 {[%emt 0:00:00]} 107. Ne3+ {[%emt 0:00:00]} Ke4 {[%emt 0:00:00]} 108. Nc4 {[%emt 0:00:00]} Kd4 {[%emt 0:00:00]} 109. Na3 {[%emt 0:00:00]} Qb2+ {[%emt 0:00:00]} 110. Ka4 {[%emt 0:00:00]} Kc5 {[%emt 0:00:00]} 111. Nc4 {[%emt 0:00:00]} Qb4# {[%emt 0:00:00]} 0-1

[Event "36th Indian-ch U13 Girls 2023"]
[Site "Secunderabad"]
[Date "2023.12.10"]
[Round "11.9"]
[White "Yasaswi Krishna Bommi"]
[Black "Modipalli Deekshitha"]
[Result "0-1"]
[ECO "A30"]
[WhiteElo "1543"]
[BlackElo "1394"]
[Annotator "NA RC"]
[PlyCount "98"]
[EventDate "2023.12.04"]
[EventType "swiss"]
[EventCountry "IND"]
[SourceTitle "playchess.com"]
[Source "ChessBase"]
[SourceQuality "1"]
[TimeControl "5400+30"]

1. Nf3 {[%emt 0:00:03]} Nf6 {[%emt 0:00:08]} 2. g3 {[%emt 0:00:08]} b6 {[%emt 0:00:07]} 3. Bg2 {[%emt 0:00:09]} Bb7 {[%emt 0:00:05]} 4. O-O {[%emt 0:00:22]} c5 {[%emt 0:00:06]} 5. d3 {[%emt 0:00:12]} e6 {[%emt 0:00:09]} 6. b3 {[%emt 0:01:59]} Be7 {[%emt 0:00:28]} 7. Bb2 {[%emt 0:00:30]} d6 {[%emt 0:01:14]} 8. Nbd2 {[%emt 0:01:16]} O-O {[%emt 0:00:19]} 9. c4 {[%emt 0:02:25]} Nbd7 {[%emt 0:02:00]} 10. e3 {[%emt 0:02:40]} d5 {[%emt 0:09:08]} 11. Qe2 {[%emt 0:07:34]} Qc7 {[%emt 0:01:50]} 12. Rac1 {[%emt 0:04:00]} Rad8 {[%emt 0:01:04]} 13. Rfd1 {[%emt 0:03:38]} h6 {[%emt 0:00:39]} 14. d4 {[%emt 0:04:32]} Qb8 {[%emt 0:04:42]} 15. h4 {[%emt 0:07:28]} Ne4 {[%emt 0:03:45]} 16. Nxe4 {[%emt 0:05:53]} dxe4 {[%emt 0:00:15]} 17. Ne5 {[%emt 0:04:06]} Qc7 {[%emt 0:13:06]} 18. Nxd7 {[%emt 0:04:37]} Rxd7 {[%emt 0:02:01]} 19. d5 {[%emt 0:05:03]} f5 {[%emt 0:06:02]} 20. Bxe4 {[%emt 0:08:44]} fxe4 {[%emt 0:16:41]} 21. Qg4 {[%emt 0:03:11]} e5 {[%emt 0:02:11]} 22. Qe6+ {[%emt 0:02:11]} Kh7 {[%emt 0:01:59]} 23. Bxe5 {[%emt 0:01:28]} Bd6 {[%emt 0:00:10]} 24. Bxd6 {[%emt 0:01:02]} Rxd6 {[%emt 0:00:22]} 25. Qxe4+ {[%emt 0:00:37]} Kg8 {[%emt 0:00:15]} 26. Qd3 {[%emt 0:05:06]} Qf7 {[%emt 0:01:07]} 27. Rf1 {[%emt 0:02:42]} Qf3 {[%emt 0:03:51]} 28. Qd1 {[%emt 0:02:41]} Qe4 {[%emt 0:00:10]} 29. Rc3 {[%emt 0:08:06]} Rf3 {[%emt 0:10:19]} 30. Qc2 {[%emt 0:02:43]} Qe5 {[%emt 0:00:12]} 31. Qe2 {[%emt 0:02:02]} Rdf6 {[%emt 0:01:16]} 32. Rd3 {[%emt 0:01:44]} Qh5 {[%emt 0:00:29]} 33. Kh2 {[%emt 0:03:21]} g5 {[%emt 0:05:51]} 34. e4 {[%emt 0:02:21]} gxh4 {[%emt 0:01:10]} 35. g4 {[%emt 0:00:14]} Qe5+ {[%emt 0:01:43]} 36. Kg2 {[%emt 0:01:31]} Rxd3 {[%emt 0:13:36]} 37. Qxd3 {[%emt 0:00:05]} Qf4 {[%emt 0:00:00]} 38. f3 {[%emt 0:01:33]} Qg3+ {[%emt 0:00:00]} 39. Kh1 {[%emt 0:00:03]} Qh3+ {[%emt 0:00:00]} 40. Kg1 {[%emt 0:00:04]} Bc8 {[%emt 0:00:16]} 41. Qe2 {[%emt 0:01:07]} Qg3+ {[%emt 0:00:22]} 42. Qg2 {[%emt 0:00:13]} Qf4 {[%emt 0:00:07]} 43. Qh2 {[%emt 0:00:22]} Qe3+ {[%emt 0:00:22]} 44. Kg2 {[%emt 0:01:38]} Bxg4 {[%emt 0:00:49]} 45. Qb8+ {[%emt 0:00:52]} Rf8 {[%emt 0:00:05]} 46. Qe5 {[%emt 0:00:17]} Bxf3+ {[%emt 0:00:09]} 47. Kh2 {[%emt 0:00:36]} Qe2+ {[%emt 0:00:03]} 48. Kh3 {[%emt 0:00:13]} Qg2+ {[%emt 0:00:05]} 49. Kxh4 {[%emt 0:00:06]} Qg4# {[%emt 0:00:03]} 0-1

[Event "36th Indian-ch U13 Girls 2023"]
[Site "Secunderabad"]
[Date "2023.12.10"]
[Round "11.10"]
[White "Sherali Pattnaik"]
[Black "Vaishnavi Radhakrishnan"]
[Result "1-0"]
[ECO "B56"]
[WhiteElo "1575"]
[BlackElo "1268"]
[Annotator "NA RC"]
[PlyCount "65"]
[EventDate "2023.12.04"]
[EventType "swiss"]
[EventCountry "IND"]
[SourceTitle "playchess.com"]
[Source "ChessBase"]
[SourceQuality "1"]
[TimeControl "5400+30"]

1. e4 {[%emt 0:00:53]} c5 {[%emt 0:00:34]} 2. Nf3 {[%emt 0:00:04]} d6 {[%emt 0:00:29]} 3. d4 {[%emt 0:00:04]} cxd4 {[%emt 0:00:18]} 4. Nxd4 {[%emt 0:00:03]} Nf6 {[%emt 0:00:34]} 5. Nc3 {[%emt 0:00:03]} e5 {[%emt 0:00:24]} 6. Nb3 {[%emt 0:02:59]} Be6 {[%emt 0:01:44]} 7. Rg1 {[%emt 0:03:18]} Nbd7 {[%emt 1:29:57]} 8. g4 {[%emt 0:07:33]} h6 {[%emt 0:00:00]} 9. Be3 {[%emt 0:02:51]} a6 {[%emt 0:00:00]} 10. f3 {[%emt 0:04:28]} b5 {[%emt 0:00:00]} 11. Qd2 {[%emt 0:10:12]} Qc7 {[%emt 0:00:00]} 12. O-O-O {[%emt 0:03:10]} Rc8 {[%emt 0:00:00]} 13. Kb1 {[%emt 0:01:43]} Nc5 {[%emt 0:00:00]} 14. h4 {[%emt 0:01:23]} Nfd7 {[%emt 0:00:00]} 15. Nd5 {[%emt 0:04:25]} Bxd5 {[%emt 0:00:00]} 16. exd5 {[%emt 0:00:02]} Be7 {[%emt 0:00:00]} 17. g5 {[%emt 0:02:30]} hxg5 {[%emt 0:00:00]} 18. hxg5 {[%emt 0:01:28]} Nxb3 {[%emt 0:00:00]} 19. axb3 {[%emt 0:01:04]} Nc5 {[%emt 0:00:00]} 20. f4 {[%emt 0:01:15]} exf4 {[%emt 0:00:00]} 21. Bxf4 {[%emt 0:00:02]} Kd8 {[%emt 0:00:00]} 22. Rg2 {[%emt 0:03:12]} Rb8 {[%emt 0:00:00]} 23. Re1 {[%emt 0:02:26]} Re8 {[%emt 0:00:00]} 24. Rge2 {[%emt 0:00:23]} b4 {[%emt 0:00:00]} 25. Qe3 {[%emt 0:01:36]} a5 {[%emt 0:00:00]} 26. Qg3 {[%emt 0:01:59]} Rb6 {[%emt 0:00:00]} 27. Qh2 {[%emt 0:04:14]} a4 {[%emt 0:00:00]} 28. Rxe7 {[%emt 0:00:13]} Qxe7 {[%emt 0:00:00]} 29. Rxe7 {[%emt 0:00:27]} Rxe7 {[%emt 0:00:00]} 30. Bxd6 {[%emt 0:01:46]} Re1+ {[%emt 0:00:00]} 31. Ka2 {[%emt 0:00:01]} axb3+ {[%emt 0:00:00]} 32. cxb3 {[%emt 0:00:02]} Ra6+ {[%emt 0:00:00]} 33. Bxa6 {[%emt 0:00:01]} 1-0